bitfinex/quotes_SOLUSD_20230404
["timestamp","ask_amount","ask_price","bid_price","bid_amount"]
[1680643907248,17.0,20.987,20.964,37.0]
[1680643907652,24.13037982,20.987,20.961,75.83664055]
[1680643907852,20.0,20.986,20.962,17.0]
[1680643908061,17.0,20.985,20.962,17.0]
[1680643908265,20.0,20.984,20.962,17.0]
[1680643908465,17.0,20.983,20.962,17.0]
[1680643908669,20.0,20.982,20.962,17.0]
[1680643909056,20.0,20.982,20.962,24.13037982]
[1680643909253,20.0,20.985,20.962,24.13037982]
[1680643909448,20.0,20.986,20.962,24.13037982]
[1680643909668,7.13037982,20.989,20.962,24.13037982]
[1680643909669,20.0,20.987,20.962,24.13037982]
[1680643909966,7.13037982,20.989,20.965,21.463]
[1680643910152,113.9286,20.987,20.966,37.0]
[1680643910354,113.9286,20.987,20.966,44.13037982]
[1680643910671,113.9286,20.987,20.967,7.13037982]
[1680643910869,113.9286,20.987,20.968,37.0]
[1680643911454,17.0,20.986,20.968,37.0]
[1680643911953,7.13037982,20.993,20.968,37.0]
[1680643912149,74.4229,20.988,20.968,37.0]
[1680643912362,17.0,20.987,20.968,37.0]
[1680643914460,24.13037982,20.987,20.968,37.0]
[1680643918871,7.13037982,20.987,20.968,37.0]
[1680643919172,98.55328,20.988,20.968,65.59037982]
[1680643920572,98.55328,20.988,20.968,58.46]
[1680643920782,98.55328,20.988,20.968,65.59037982]
[1680643923783,74.4229,20.988,20.968,65.59037982]
[1680643926184,74.4229,20.988,20.968,119.96002037]
[1680643928185,74.4229,20.988,20.968,134.60278827]
[1680643939687,74.4229,20.988,20.968,192.50330726]
[1680643943892,74.4229,20.988,20.969,20.0]
[1680643944093,74.4229,20.988,20.973,21.455]
[1680643944289,74.4229,20.988,20.974,20.0]
[1680643944593,74.4229,20.988,20.974,37.0]
[1680643945095,74.4229,20.988,20.974,20.0]
[1680643946484,74.4229,20.988,20.975,17.0]
[1680643947284,74.4229,20.988,20.977,20.0]
[1680643947498,74.4229,20.988,20.978,37.0]
[1680643949285,74.34711159,20.988,20.978,37.0]
[1680643949696,23.812,20.998,20.978,37.0]
[1680643949886,17.0,20.997,20.978,37.0]
[1680643950090,20.0,20.996,20.979,20.0]
[1680643950285,20.0,20.996,20.98,16.92698031]
[1680643950791,20.0,20.996,20.978,20.0]
[1680643951189,20.0,20.994,20.978,20.0]
[1680643952398,20.0,20.994,20.979,17.0]
[1680643956000,15.0,20.994,20.979,17.0]
[1680643956298,20.0,20.992,20.977,117.8603]
[1680643956505,20.0,20.991,20.978,17.0]
[1680643958409,20.0,20.993,20.978,17.0]
[1680643958612,17.0,20.992,20.978,17.0]
[1680643958792,20.0,20.991,20.978,17.0]
[1680643962018,20.0,20.991,20.976,17.0]
[1680643964307,20.0,20.993,20.976,17.0]
[1680643964503,17.0,20.992,20.976,17.0]
[1680643964721,20.0,20.991,20.976,17.0]
[1680643968211,20.0,20.993,20.977,20.0]
[1680643968414,20.0,20.993,20.978,17.0]
[1680643968838,20.0,20.995,20.978,17.0]
[1680643969135,17.0,20.994,20.978,17.0]
[1680643969330,20.0,20.993,20.978,17.0]
[1680643970040,20.0,20.993,20.979,20.0]
[1680643970325,20.0,20.993,20.98,17.0]
[1680643973926,20.0,20.995,20.98,17.0]
[1680643974429,20.0,20.995,20.977,131.4763]
[1680643974634,17.0,20.994,20.977,131.4763]
[1680643974833,20.0,20.993,20.977,131.4763]
[1680643975419,20.0,20.995,20.977,131.4763]
[1680643975821,20.0,20.995,20.979,20.0]
[1680643976133,20.0,20.995,20.98,17.0]
[1680643980739,17.0,20.994,20.978,17.0]
[1680643980936,20.0,20.993,20.978,17.0]
[1680643981941,20.0,20.995,20.979,20.0]
[1680643982137,20.0,20.995,20.98,17.0]
[1680643983942,20.0,20.995,20.979,20.0]
[1680643984124,20.0,20.995,20.98,17.0]
[1680643987241,20.0,20.995,20.978,17.0]
[1680643987442,20.0,20.995,20.979,20.0]
[1680643987629,20.0,20.995,20.98,17.0]
[1680643991031,17.0,20.994,20.98,17.0]
[1680643991231,20.0,20.993,20.98,17.0]
[1680643992337,17.0,20.992,20.979,20.0]
[1680643992644,20.0,20.991,20.977,111.4763]
[1680643993036,17.0,20.99,20.977,111.4763]
[1680643993242,20.0,20.989,20.977,111.4763]
[1680643993948,20.0,20.992,20.977,111.4763]
[1680643994138,17.0,20.991,20.977,111.4763]
[1680643994339,20.0,20.99,20.977,111.4763]
[1680643997640,17.0,20.989,20.977,111.4763]
[1680643997853,20.0,20.988,20.977,111.4763]
[1680643998860,17.0,20.987,20.977,111.4763]
[1680643999160,20.0,20.988,20.977,111.4763]
[1680643999351,10.0,20.991,20.977,111.4763]
[1680643999652,10.0,20.989,20.977,111.4763]
[1680643999832,20.0,20.988,20.977,111.4763]
[1680644006447,20.0,20.989,20.977,111.4763]
[1680644023173,20.0,20.989,20.977,111.4763]
[1680644042687,20.0,20.989,20.978,10.0]
[1680644042881,20.0,20.989,20.977,111.4763]
[1680644053085,10.0,20.988,20.977,111.4763]
[1680644056390,20.0,20.989,20.977,111.4763]
[1680644056901,17.0,20.988,20.977,111.4763]
[1680644057101,10.0,20.987,20.977,111.4763]
[1680644058093,17.0,20.986,20.977,111.4763]
[1680644058305,10.0,20.987,20.977,111.4763]
[1680644058510,17.0,20.986,20.977,111.4763]
[1680644058709,10.0,20.987,20.977,111.4763]
[1680644063397,10.0,20.988,20.977,111.4763]
[1680644067500,20.0,20.987,20.977,111.4763]
[1680644067998,20.0,20.989,20.977,111.4763]
[1680644076908,17.0,20.988,20.977,111.4763]
[1680644077109,20.0,20.987,20.977,111.4763]
[1680644077817,14.32223714,20.99,20.978,27.0]
[1680644078018,20.0,20.995,20.978,27.0]
[1680644078406,20.0,20.995,20.977,111.4763]
[1680644079213,17.0,20.992,20.977,111.4763]
[1680644079817,20.0,20.991,20.977,111.4763]
[1680644080021,17.0,20.99,20.977,111.4763]
[1680644080223,20.0,20.989,20.977,111.4763]
[1680644081014,20.0,20.992,20.977,111.4763]
[1680644081219,17.0,20.991,20.977,111.4763]
[1680644081420,20.0,20.99,20.977,111.4763]
[1680644085812,20.0,20.992,20.977,111.4763]
[1680644086213,20.0,20.992,20.968,69.01240845]
[1680644086214,23.822,20.989,20.968,14.6427679]
[1680644086422,146.4227,20.988,20.967,20.0]
[1680644086631,23.828,20.984,20.967,20.0]
[1680644086831,47.0,20.983,20.967,20.0]
[1680644096137,47.0,20.983,20.966,110.4515]
[1680644098623,109.79908734,20.983,20.966,110.4515]
[1680644103255,159.13112237,20.983,20.966,110.4515]
[1680644103747,166.26150219,20.983,20.966,110.4515]
[1680644105132,23.832,20.98,20.966,110.4515]
[1680644105335,37.0,20.979,20.966,110.4515]
[1680644105651,20.0,20.978,20.966,110.4515]
[1680644105945,20.0,20.976,20.966,110.4515]
[1680644106137,20.0,20.974,20.966,110.4515]
[1680644106337,20.0,20.973,20.966,110.4515]
[1680644106932,20.0,20.975,20.966,110.4515]
[1680644107533,20.0,20.974,20.966,110.4515]
[1680644107841,20.0,20.973,20.966,110.4515]
[1680644109452,20.0,20.975,20.966,110.4515]
[1680644112547,82.79908734,20.975,20.966,110.4515]
[1680644112852,20.0,20.974,20.966,110.4515]
[1680644113052,20.0,20.973,20.966,110.4515]
[1680644113450,40.0,20.974,20.966,110.4515]
[1680644115048,102.79908734,20.974,20.962,110.7511]
[1680644115251,17.0,20.973,20.962,110.7511]
[1680644115471,20.0,20.972,20.962,110.7511]
[1680644115761,17.0,20.971,20.962,110.7511]
[1680644115942,20.0,20.97,20.957,52.26900712]
[1680644116143,17.0,20.969,20.957,52.26900712]
[1680644116442,20.0,20.968,20.957,52.26900712]
[1680644118853,20.0,20.968,20.957,14.11701712]
[1680644119061,20.0,20.968,20.956,116.2406]
[1680644120261,20.0,20.968,20.956,130.47505538]
[1680644120458,20.0,20.967,20.956,116.2406]
[1680644120759,37.0,20.967,20.956,116.2406]
[1680644120944,20.0,20.966,20.956,116.2406]
[1680644121145,17.0,20.965,20.956,116.2406]
[1680644121357,20.0,20.963,20.956,116.2406]
[1680644121559,20.0,20.962,20.956,116.2406]
[1680644122354,20.0,20.964,20.956,116.2406]
[1680644123063,17.0,20.963,20.945,14.2118977]
[1680644123366,20.0,20.962,20.947,20.0]
[1680644126153,20.0,20.966,20.947,20.0]
[1680644126357,17.0,20.965,20.947,20.0]
[1680644126565,20.0,20.964,20.947,20.0]
[1680644129372,17.0,20.963,20.947,20.0]
[1680644129575,20.0,20.962,20.947,20.0]
[1680644130280,20.0,20.965,20.947,20.0]
[1680644130456,17.0,20.964,20.947,20.0]
[1680644130656,20.0,20.963,20.947,20.0]
[1680644130867,17.0,20.962,20.947,20.0]
[1680644131069,20.0,20.961,20.947,20.0]
[1680644131266,20.0,20.961,20.946,109.2661]
[1680644131674,20.0,20.961,20.947,20.0]
[1680644131881,19.91075408,20.961,20.947,20.0]
[1680644132469,19.91075408,20.961,20.946,109.2661]
[1680644132657,17.0,20.96,20.946,109.2661]
[1680644133178,17.0,20.96,20.948,20.0]
[1680644133976,20.0,20.959,20.948,20.0]
[1680644134875,17.0,20.958,20.948,20.0]
[1680644136679,20.0,20.957,20.948,20.0]
[1680644136974,20.0,20.955,20.948,20.0]
[1680644137163,20.0,20.953,20.935,15.48180652]
[1680644137365,37.0,20.952,20.935,15.48180652]
[1680644137661,44.13037982,20.952,20.935,15.48180652]
[1680644137861,20.0,20.951,20.935,15.48180652]
[1680644138061,20.0,20.95,20.935,15.48180652]
[1680644138270,17.0,20.949,20.936,20.0]
[1680644138473,20.0,20.948,20.936,20.0]
[1680644139878,20.0,20.951,20.936,20.0]
[1680644140073,17.0,20.95,20.936,35.48106704]
[1680644140274,20.0,20.949,20.936,15.48106704]
[1680644141264,17.0,20.948,20.936,15.48106704]
[1680644141467,20.0,20.949,20.936,15.48106704]
[1680644141660,20.0,20.95,20.936,15.48106704]
[1680644141860,17.0,20.949,20.936,15.48106704]
[1680644142065,20.0,20.948,20.936,15.48106704]
[1680644143767,20.0,20.948,20.935,33.96286419]
[1680644146283,20.0,20.948,20.936,38.493]
[1680644146485,14.64855334,20.958,20.936,38.493]
[1680644146685,20.0,20.957,20.936,38.493]
[1680644146982,7.13037982,20.957,20.937,20.0]
[1680644147184,20.0,20.96,20.938,37.0]
[1680644147371,20.0,20.959,20.938,37.0]
[1680644147571,17.0,20.958,20.938,37.0]
[1680644147771,17.0,20.958,20.939,20.0]
[1680644147975,7.13037982,20.957,20.94,17.0]
[1680644148587,7.13037982,20.957,20.941,20.0]
[1680644148782,7.13037982,20.957,20.942,17.0]
[1680644148968,7.13037982,20.957,20.943,20.0]
[1680644149172,7.13037982,20.957,20.944,17.0]
[1680644149383,7.13037982,20.957,20.944,116.5013]
[1680644152785,17.0,20.958,20.944,116.5013]
[1680644154284,24.13037982,20.958,20.944,116.5013]
[1680644157592,20.0,20.957,20.944,116.5013]
[1680644157989,27.13037982,20.957,20.944,116.5013]
[1680644162394,17.0,20.956,20.944,116.5013]
[1680644166697,24.13037982,20.956,20.944,116.5013]
[1680644169381,20.0,20.955,20.944,116.5013]
[1680644169585,20.0,20.955,20.928,38.202152]
[1680644169586,37.0,20.954,20.928,38.202152]
[1680644169792,20.0,20.953,20.936,116.1607]
[1680644169985,20.0,20.952,20.936,116.1607]
[1680644170186,37.0,20.951,20.936,116.1607]
[1680644170487,20.0,20.95,20.936,116.1607]
[1680644170687,20.0,20.948,20.936,116.1607]
[1680644170887,37.0,20.947,20.936,116.1607]
[1680644171099,20.0,20.946,20.936,116.1607]
[1680644171298,20.0,20.945,20.936,116.1607]
[1680644172485,7.13037982,20.944,20.928,52.39451374]
[1680644172692,37.0,20.943,20.928,52.39451374]
[1680644172882,20.0,20.942,20.928,52.39451374]
[1680644173205,20.0,20.941,20.928,52.39451374]
[1680644173387,44.13037982,20.943,20.928,52.39451374]
[1680644173785,37.0,20.943,20.928,52.39451374]
[1680644173985,20.0,20.943,20.929,20.0]
[1680644174202,20.0,20.943,20.93,17.0]
[1680644174403,20.0,20.947,20.929,17.0]
[1680644174700,7.13037982,20.944,20.929,17.0]
[1680644174899,20.0,20.943,20.929,17.0]
[1680644175298,27.13037982,20.943,20.929,17.0]
[1680644178884,27.13037982,20.943,20.93,20.0]
[1680644179085,27.13037982,20.943,20.929,17.0]
[1680644183599,27.13037982,20.943,20.928,14.19236174]
[1680644183793,27.13037982,20.943,20.927,20.0]
[1680644183994,27.13037982,20.943,20.928,17.0]
[1680644185100,20.0,20.943,20.928,17.0]
[1680644185308,7.13037982,20.945,20.929,20.0]
[1680644185504,55.83608195,20.95,20.93,17.0]
[1680644185708,20.0,20.949,20.931,20.0]
[1680644186092,27.13037982,20.949,20.931,20.0]
[1680644186291,27.13037982,20.949,20.932,17.0]
[1680644186805,20.0,20.947,20.932,17.0]
[1680644187104,7.13037982,20.946,20.932,17.0]
[1680644188004,7.13037982,20.946,20.933,111.685]
[1680644188207,7.13037982,20.946,20.934,17.0]
[1680644191213,7.13037982,20.946,20.933,111.685]
[1680644193218,7.13037982,20.946,20.934,112.3105]
[1680644194103,20.0,20.948,20.935,17.0]
[1680644194313,19.107547,20.951,20.935,17.0]
[1680644194314,27.13037982,20.95,20.936,20.0]
[1680644194494,27.13037982,20.95,20.937,17.0]
[1680644194899,20.0,20.95,20.937,17.0]
[1680644195708,20.0,20.95,20.938,20.0]
[1680644195910,20.0,20.95,20.939,17.0]
[1680644196505,20.0,20.95,20.94,20.0]
[1680644196705,20.0,20.95,20.941,17.0]
[1680644197800,20.0,20.95,20.939,17.0]
[1680644198000,20.0,20.95,20.94,20.0]
[1680644198297,20.0,20.95,20.941,17.0]
[1680644199617,14.16516508,20.958,20.941,17.0]
[1680644199917,20.0,20.961,20.941,17.0]
[1680644200106,37.0,20.96,20.941,17.0]
[1680644200507,20.0,20.959,20.941,17.0]
[1680644200706,37.0,20.958,20.941,17.0]
[1680644201008,20.0,20.958,20.941,17.0]
[1680644201419,20.0,20.959,20.941,17.0]
[1680644201625,17.0,20.958,20.941,17.0]
[1680644202514,20.0,20.957,20.941,17.0]
[1680644203723,20.0,20.957,20.939,17.0]
[1680644205320,17.0,20.956,20.939,17.0]
[1680644205618,20.0,20.955,20.937,17.0]
[1680644205923,20.0,20.955,20.938,20.0]
[1680644206112,20.0,20.955,20.939,17.0]
[1680644207223,17.0,20.956,20.939,17.0]
[1680644208223,20.0,20.955,20.939,17.0]
[1680644208808,17.0,20.954,20.939,17.0]
[1680644215435,111.6556,20.955,20.939,17.0]
[1680644215618,17.0,20.954,20.94,17.0]
[1680644216125,17.0,20.954,20.939,17.0]
[1680644217030,111.6556,20.955,20.94,20.0]
[1680644217231,111.6556,20.955,20.941,17.0]
[1680644217622,111.6556,20.955,20.939,17.0]
[1680644220827,111.6556,20.955,20.94,20.0]
[1680644221028,111.6556,20.955,20.941,17.0]
[1680644222639,20.0,20.958,20.941,17.0]
[1680644222640,40.0,20.959,20.941,17.0]
[1680644222837,20.0,20.957,20.941,17.0]
[1680644223026,17.0,20.956,20.941,17.0]
[1680644223636,17.0,20.957,20.941,17.0]
[1680644225936,17.0,20.957,20.94,20.0]
[1680644226136,17.0,20.957,20.941,17.0]
[1680644230750,17.0,20.957,20.939,17.0]
[1680644230944,17.0,20.957,20.94,20.0]
[1680644231138,17.0,20.957,20.941,17.0]
[1680644232544,20.0,20.956,20.941,17.0]
[1680644232849,17.0,20.955,20.939,17.0]
[1680644235050,20.0,20.954,20.939,17.0]
[1680644235751,20.0,20.954,20.938,34.65327354]
[1680644235934,17.0,20.953,20.939,17.0]
[1680644236648,17.0,20.953,20.938,34.65327354]
[1680644240455,17.0,20.953,20.938,14.65327354]
[1680644240643,17.0,20.953,20.933,111.685]
[1680644240843,20.0,20.952,20.933,111.685]
[1680644241044,20.0,20.95,20.933,111.685]
[1680644241343,37.0,20.949,20.933,111.685]
[1680644247047,20.0,20.948,20.933,111.685]
[1680644247251,17.0,20.947,20.933,111.685]
[1680644247662,20.0,20.946,20.933,111.685]
[1680644247850,17.0,20.945,20.933,111.685]
[1680644249960,20.0,20.944,20.933,111.685]
[1680644250153,17.0,20.943,20.933,111.685]
[1680644250343,17.0,20.943,20.932,20.0]
[1680644250548,20.0,20.942,20.932,20.0]
[1680644250747,17.0,20.941,20.932,20.0]
[1680644250948,20.0,20.94,20.932,20.0]
[1680644251164,17.0,20.939,20.932,20.0]
[1680644251361,20.0,20.938,20.932,20.0]
[1680644251561,17.0,20.937,20.932,20.0]
[1680644253057,17.0,20.937,20.923,116.8377]
[1680644255854,20.0,20.938,20.924,20.0]
[1680644256051,20.0,20.941,20.924,20.0]
[1680644256252,17.0,20.94,20.924,20.0]
[1680644256552,20.0,20.939,20.924,20.0]
[1680644256752,20.0,20.937,20.923,116.8377]
[1680644258470,17.0,20.936,20.923,116.8377]
[1680644258767,20.0,20.937,20.923,116.8377]
[1680644258963,17.0,20.936,20.923,116.8377]
[1680644259965,17.0,20.937,20.923,116.8377]
[1680644260556,20.0,20.936,20.923,116.8377]
[1680644260755,17.0,20.935,20.923,116.8377]
[1680644264659,17.0,20.937,20.923,116.8377]
[1680644266973,17.0,20.937,20.923,116.8377]
[1680644267984,20.0,20.936,20.923,116.8377]
[1680644268164,17.0,20.935,20.923,116.8377]
[1680644268878,20.0,20.936,20.923,116.8377]
[1680644269179,20.0,20.938,20.923,116.8377]
[1680644269363,20.0,20.939,20.924,17.0]
[1680644272184,20.0,20.938,20.924,17.0]
[1680644274970,20.0,20.939,20.924,17.0]
[1680644276082,20.0,20.939,20.923,116.8377]
[1680644276384,17.0,20.938,20.923,116.8377]
[1680644276569,20.0,20.937,20.923,116.8377]
[1680644278369,17.0,20.936,20.923,116.8377]
[1680644278980,17.0,20.938,20.923,116.8377]
[1680644279383,20.0,20.937,20.923,116.8377]
[1680644279584,17.0,20.936,20.923,116.8377]
[1680644286092,17.0,20.938,20.923,116.8377]
[1680644286688,20.0,20.937,20.923,116.8377]
[1680644286990,37.0,20.936,20.923,116.8377]
[1680644287778,7.13037982,20.935,20.923,116.8377]
[1680644287977,37.0,20.934,20.923,116.8377]
[1680644288194,20.0,20.934,20.923,116.8377]
[1680644288397,20.0,20.932,20.923,116.8377]
[1680644288586,17.0,20.931,20.923,116.8377]
[1680644288896,20.0,20.93,20.923,116.8377]
[1680644291381,20.0,20.929,20.923,116.8377]
[1680644291590,20.0,20.928,20.923,116.8377]
[1680644291996,20.0,20.928,20.922,116.8945]
[1680644294290,20.0,20.931,20.922,116.8945]
[1680644294486,37.0,20.931,20.922,116.8945]
[1680644295202,20.0,20.931,20.922,116.8945]
[1680644295389,20.0,20.933,20.922,116.8945]
[1680644295588,37.0,20.932,20.922,116.8945]
[1680644295797,58.65323886,20.941,20.922,116.8945]
[1680644295986,72.02810477,20.942,20.923,125.2704]
[1680644296187,20.0,20.942,20.923,125.2704]
[1680644296385,20.0,20.942,20.924,20.0]
[1680644296590,20.0,20.943,20.925,17.0]
[1680644296894,20.0,20.946,20.923,132.40077982]
[1680644297398,20.0,20.946,20.924,20.0]
[1680644297586,20.0,20.945,20.925,17.0]
[1680644298197,20.0,20.946,20.925,17.0]
[1680644298402,20.0,20.946,20.927,20.0]
[1680644298586,20.0,20.946,20.928,37.0]
[1680644298781,20.0,20.946,20.928,44.13037982]
[1680644298986,20.0,20.946,20.929,7.13037982]
[1680644299187,20.0,20.946,20.93,37.0]
[1680644300299,20.0,20.946,20.93,44.13037982]
[1680644300815,20.0,20.946,20.931,113.824]
[1680644301107,20.0,20.946,20.932,17.0]
[1680644301405,20.0,20.946,20.933,20.0]
[1680644301590,20.0,20.946,20.935,20.0]
[1680644302091,20.0,20.946,20.936,17.0]
[1680644309990,295.17321353,20.948,20.936,17.0]
[1680644313807,295.17321353,20.948,20.933,20.0]
[1680644315403,295.17321353,20.948,20.934,17.0]
[1680644323008,112.0059,20.955,20.935,20.0]
[1680644323204,112.0059,20.955,20.936,21.493]
[1680644323408,267.0,20.956,20.937,20.0]
[1680644323610,267.0,20.956,20.937,27.13037982]
[1680644323807,267.0,20.956,20.938,17.0]
[1680644324125,267.0,20.956,20.94,20.0]
[1680644324328,267.0,20.956,20.941,17.0]
[1680644325434,267.0,20.956,20.942,20.0]
[1680644325631,267.0,20.956,20.943,17.0]
[1680644326721,267.0,20.956,20.942,20.0]
[1680644326920,267.0,20.956,20.943,17.0]
[1680644329233,267.0,20.956,20.941,17.0]
[1680644329430,267.0,20.956,20.94,17.0]
[1680644329917,20.0,20.957,20.94,17.0]
[1680644330412,20.0,20.957,20.941,20.0]
[1680644330615,20.0,20.957,20.942,17.0]
[1680644332135,17.0,20.956,20.939,139.56]
[1680644332335,17.0,20.959,20.939,139.56]
[1680644332633,20.0,20.957,20.939,139.56]
[1680644332825,20.0,20.955,20.939,139.56]
[1680644333331,20.0,20.955,20.94,17.0]
[1680644334833,17.0,20.954,20.933,117.5915]
[1680644335133,40.0,20.953,20.934,37.0]
[1680644335320,17.0,20.952,20.934,37.0]
[1680644335520,20.0,20.951,20.934,37.0]
[1680644339533,20.0,20.95,20.934,17.0]
[1680644339737,37.0,20.95,20.934,17.0]
[1680644339925,20.0,20.949,20.934,17.0]
[1680644341943,37.0,20.948,20.933,117.5915]
[1680644342144,37.0,20.948,20.93,14.40315998]
[1680644342349,37.0,20.948,20.931,17.0]
[1680644342642,37.0,20.948,20.93,17.0]
[1680644343827,37.0,20.948,20.929,13.96882535]
[1680644344030,44.13037982,20.948,20.924,21.505]
[1680644344245,44.13037982,20.948,20.926,20.0]
[1680644345750,44.13037982,20.948,20.927,20.0]
[1680644345960,44.13037982,20.948,20.928,17.0]
[1680644346149,44.13037982,20.948,20.928,37.0]
[1680644350230,24.13037982,20.948,20.928,37.0]
[1680644350439,20.0,20.949,20.929,28.63137982]
[1680644350656,20.0,20.951,20.93,17.0]
[1680644350855,20.0,20.951,20.931,20.0]
[1680644351060,20.0,20.951,20.932,17.0]
[1680644351356,20.0,20.951,20.932,24.13037982]
[1680644351555,20.0,20.951,20.934,20.0]
[1680644351755,20.0,20.951,20.935,17.0]
[1680644353161,40.0,20.951,20.935,17.0]
[1680644353366,20.0,20.951,20.935,17.0]
[1680644354042,17.0,20.95,20.934,17.0]
[1680644354246,20.0,20.949,20.934,17.0]
[1680644356353,17.0,20.948,20.93,61.83295029]
[1680644356558,20.0,20.949,20.93,61.83295029]
[1680644356741,20.0,20.949,20.931,20.0]
[1680644357851,20.0,20.949,20.932,17.0]
[1680644358856,20.0,20.948,20.932,17.0]
[1680644359461,20.0,20.948,20.931,20.0]
[1680644359664,20.0,20.948,20.932,17.0]
[1680644361549,20.0,20.948,20.931,17.0]
[1680644363258,20.0,20.948,20.93,17.0]
[1680644364162,20.0,20.948,20.929,17.0]
[1680644364952,20.0,20.946,20.929,17.0]
[1680644367754,20.0,20.946,20.93,20.0]
[1680644367947,20.0,20.946,20.931,17.0]
[1680644369271,20.0,20.946,20.929,17.0]
[1680644370371,20.0,20.948,20.93,20.0]
[1680644370674,20.0,20.946,20.931,17.0]
[1680644370868,20.0,20.946,20.929,17.0]
[1680644371176,20.0,20.948,20.929,17.0]
[1680644371353,17.0,20.947,20.929,17.0]
[1680644371758,20.0,20.946,20.929,17.0]
[1680644374266,20.0,20.944,20.928,34.10215057]
[1680644374771,17.0,20.943,20.928,34.10215057]
[1680644375557,20.0,20.942,20.928,34.10215057]
[1680644375856,17.0,20.941,20.928,34.10215057]
[1680644378655,20.0,20.942,20.928,34.10215057]
[1680644378856,17.0,20.941,20.928,34.10215057]
[1680644380158,17.0,20.941,20.923,118.3213]
[1680644380359,20.0,20.94,20.923,118.3213]
[1680644380558,17.0,20.939,20.923,118.3213]
[1680644380879,20.0,20.938,20.923,118.3213]
[1680644383073,20.0,20.937,20.923,118.3213]
[1680644383475,20.0,20.938,20.923,118.3213]
[1680644383667,20.0,20.941,20.923,118.3213]
[1680644383981,17.0,20.94,20.923,118.3213]
[1680644384278,20.0,20.939,20.923,118.3213]
[1680644384466,17.0,20.938,20.923,118.3213]
[1680644386295,20.0,20.939,20.923,118.3213]
[1680644386484,20.0,20.94,20.924,37.0]
[1680644386680,20.0,20.943,20.924,37.0]
[1680644386871,17.0,20.942,20.924,37.0]
[1680644387069,20.0,20.941,20.924,37.0]
[1680644390382,20.0,20.943,20.924,37.0]
[1680644393171,40.0,20.943,20.924,37.0]
[1680644394302,20.0,20.942,20.924,37.0]
[1680644394587,20.0,20.941,20.924,37.0]
[1680644394993,20.0,20.942,20.924,37.0]
[1680644396287,20.0,20.942,20.924,17.0]
[1680644396605,20.0,20.942,20.925,20.0]
[1680644396848,20.0,20.942,20.926,17.0]
[1680644397180,20.0,20.942,20.925,17.0]